Workbook

Sheet Kontrolle
B2: Preispolitik im unvollkommenen Markt
G4: Erlös | I4: =Tabellen!J17*Tabellen!J18 -> 540500
B5: Funktionen | C5: bX2 | D5: cX | E5: d | F5: d/X | G5: Gesamtkosten | I5: =Tabellen!D2+(Tabellen!C2*Tabellen!J17) -> 396000
B6: Gesamtkosten | D6: 480 | E6: 120000 | G6: variable Gesamtkosten | I6: =Tabellen!C2*Tabellen!J17 -> 276000
B7: Preis-Absatz-Funktion 1 | D7: -0.2 | E7: 1200 | G7: fixe Gesamtkosten | I7: =Tabellen!D4 -> 120000
B8: Preis-Absatz-Funktion 2 | D8: -0.8 | E8: 1400 | G8: Stückkosten | I8: =Tabellen!D8+(Tabellen!E8/Tabellen!J17) -> 688.6956522
B9: Preis-Absatz-Funktion 3 | D9: -0.55 | E9: 1000 | G9: variable Stückkosten | I9: =Tabellen!D9 -> 480
B10: variable Gesamtkosten | D10: =D6 -> 480 | G10: fixe Stückkosten | I10: =Tabellen!E10/Tabellen!J17 -> 208.6956522
B11: Stückkosten | E11: =D6 -> 480 | F11: =E6 -> 120000 | G11: Grenzkosten | I11: =Tabellen!D11 -> 480
B12: variable Stückkosten | E12: =E11 -> 480 | G12: Absatzgrenze (Xmax) | I12: =($E$9/$D$9)*-1 -> 1818.181818
B13: Grenzkosten | E13: =D6 -> 480 | G13: Geben Sie nach Klick auf "Eingabe" die Kostenfunktion und die Preis-Absatz-Funktionen ein. Oder kopieren Sie Beispielfunktionen in die entpsrechenden Felder.
B14: Erlös 1 | C14: =D7 -> -0.2 | D14: =E7 -> 1200
B15: Grenzerlös 1 | D15: =2*C14 -> -0.4 | E15: =D14 -> 1200
B16: Erlös 2 | C16: =D8 -> -0.8 | D16: =E8 -> 1400
B17: Grenzerlös 2 | D17: -1.6 | E17: 1400
B18: Erlös 3 | C18: =D9 -> -0.55 | D18: 1000
B19: Grenzerlös 3 | D19: -0.45 | E19: 600
B25: Extrempunkte | C25: €
B26: Gewinnmaximum | C26: =Tabellen!J16 -> 144500 | D26: größter Gesamtgewinn; größte Differenz zwischen Erlös und Kosten
B27: Courtnotscher Punkt | D27: Die Cournotsche Menge ergibt sich aus dem Schnittpunkt zwischen Grenzkosten und Grenzerlös für die den definierten gewinnmaximalen Bereich. Eingesetzt in die entsprechende Preis-Absatz-Funktion wird der gewinnmaximale Preis ermittelt.
B28: Preis | C28: =Tabellen!J18 -> 940
B29: Menge | C29: =Tabellen!J17 -> 575
B31: Klicken Sie auf den Button "Funktionen" und tragen Sie die Kostenfunktion und die Preis-Absatz-Funktionen entsprechend den Potenzen in die dafür vorgesehenen Felder ein.

Sheet Tabellen
B1: bX2 | C1: cX | D1: d | E1: d/X | F1: Ausgabewerte
A2: K= | C2: =Kontrolle!D6 -> 480 | D2: =Kontrolle!E6 -> 120000 | F2: Gewinnmaximum tabellarisch | I2: Gmax | J2: =MAX(L21:L121) -> 144462.8099
A3: Kv= | C3: =C2 -> 480 | I3: XGmax | J3: =VLOOKUP(J2,L21:U121,10,FALSE) -> 581.8181818
A4: Kf= | D4: =D2 -> 120000
A5: E1= | B5: =Kontrolle!C14 -> -0.2 | C5: =Kontrolle!D14 -> 1200 | F5: Abweichungen der tabellarischen von der analystischen | J5: =100%-(J2/J16) -> 0.0002573708141
A6: E2= | B6: =Kontrolle!C16 -> -0.8 | C6: =Kontrolle!D16 -> 1400 | F6: Gewinnermittlung. (analytischer Gewinn = 100%)
A7: E2= | B7: =Kontrolle!C18 -> -0.55 | C7: =Kontrolle!D18 -> 1000
A8: k= | D8: =C2 -> 480 | E8: =D2 -> 120000 | F8: Gewinnmaximum analytisch
A9: kv= | D9: =C3 -> 480 | H9: Gewinn | I9: Preis | J9: Menge
A10: kf= | E10: =D4 -> 120000 | F10: PAF1 | G10: =IF(AND(J10<$H$16,J10>$G$16),"definiert","nicht definiert") -> nicht definiert | H10: =IF(G10="definiert",(J10*I10)-($D$2+($C$2*J10)),"") ->  | I10: =IF(G10="definiert",D15+(C15*J10),"") ->  | J10: =(D12-$D$11)/(C12*-1) -> 1800
A11: K' | D11: =C2 -> 480 | F11: PAF2 | G11: =IF(AND(J11<$H$17,J11>$G$17),"definiert","nicht definiert") -> definiert | H11: =IF(G11="definiert",(J11*I11)-($D$2+($C$2*J11)),"") -> 144500 | I11: =IF(G11="definiert",D16+(C16*J11),"") -> 940 | J11: =(D13-$D$11)/(C13*-1) -> 575
A12: E'1 | C12: =2*B5 -> -0.4 | D12: =C5 -> 1200 | F12: PAF3 | G12: =IF(AND(J12<$H$18,J12>$G$18),"definiert","nicht definiert") -> nicht definiert | H12: =IF(G12="definiert",(J12*I12)-($D$2+($C$2*J12)),"") ->  | I12: =IF(G12="definiert",D17+(C17*J12),"") ->  | J12: =(D14-$D$11)/(C14*-1) -> 472.7272727
A13: E'2 | C13: =2*B6 -> -1.6 | D13: =C6 -> 1400
A14: E'3 | C14: =2*B7 -> -1.1 | D14: =C7 -> 1000 | G14: Definitionsbereiche | I14: Cournotscher Punkt
A15: PAF1 | C15: =Kontrolle!D7 -> -0.2 | D15: =Kontrolle!E7 -> 1200 | G15: xmin | H15: xmax
A16: PAF2 | C16: =Kontrolle!D8 -> -0.8 | D16: =Kontrolle!E8 -> 1400 | F16: PAF1 | G16: 0 | H16: =INT((D16-D15)/(C15+C16*-1)) -> 333 | I16: Gmax | J16: =MAX(H10:H12) -> 144500
A17: PAF3 | C17: =Kontrolle!D9 -> -0.55 | D17: =Kontrolle!E9 -> 1000 | F17: PAF2 | G17: =H16 -> 333 | H17: =INT((D17-D16)/(C16+C17*-1)) -> 1600 | I17: XGmax | J17: =VLOOKUP(J16,H10:J12,3) -> 575
A18: Xmax | B18: =Kontrolle!I12 -> 1818.181818 | F18: PAF3 | G18: =H17 -> 1600 | H18: =B18 -> 1818.181818 | I18: PGmax | J18: =VLOOKUP(J16,H10:J12,2) -> 940
A20: X | B20: K | C20: E1 | D20: E2 | E20: E3 | F20: E | G20: Kv | H20: Kf | I20: k | J20: kv | K20: K' | L20: E-K | M20: E'1 | N20: E'2 | O20: E'3 | P20: E' | Q20: PAF1 | R20: PAF2 | S20: PAF3 | T20: PAF | U20: X | V20: Zeilen | W20: Definitionsbereiche
A21: 0 | B21: =($C$2*A21)+($D$2) -> 120000 | C21: =($B$5*(A21*A21))+($C$5*A21) -> 0 | D21: =($B$6*(A21*A21))+($C$6*A21) -> 0 | E21: =($B$7*(A21*A21))+($C$7*A21) -> 0 | F21: =T21*A21 -> 0 | G21: =B21-$D$4 -> 0 | H21: =$D$4 -> 120000 | L21: =F21-B21 -> -120000 | M21: =$D$12+$C$12*A21 -> 1200 | N21: =$D$13+$C$13*A21 -> 1400 | O21: =$D$14+$C$14*A21 -> 1000 | P21: =IF(AND($Q21<$R21,$R21>$S21),M21,IF(AND($R21>$S21,$Q21>$S21),N21,O21)) -> 1200 | Q21: =$D$15+$C$15*A21 -> 1200 | R21: =$D$16+$C$16*A21 -> 1400 | S21: =$D$17+$C$17*A21 -> 1000 | T21: =IF(AND($Q21<$R21,$R21>$S21),Q21,IF(AND($R21>$S21,$Q21>$S21),R21,S21)) -> 1200 | U21: 0 | V21: 0 | W21: =IF(T21=Q21,"PAF1",IF(T21=R21,"PAF2","PAF3")) -> PAF1 | X21: =IF(W21="PAF1",U21,"") -> 0
A22: =$B$18/100 -> 18.18181818 | B22: =($C$2*A22)+($D$2) -> 128727.2727 | C22: =($B$5*(A22*A22))+($C$5*A22) -> 21752.06612 | D22: =($B$6*(A22*A22))+($C$6*A22) -> 25190.08264 | E22: =($B$7*(A22*A22))+($C$7*A22) -> 18000 | F22: =T22*A22 -> 21752.06612 | G22: =B22-$D$4 -> 8727.272727 | H22: =$D$4 -> 120000 | I22: =$D$8+($E$8/A22) -> 7080 | J22: =$D$9 -> 480 | K22: =$D$11 -> 480 | L22: =F22-B22 -> -106975.2066 | M22: =$D$12+$C$12*A22 -> 1192.727273 | N22: =$D$13+$C$13*A22 -> 1370.909091 | O22: =$D$14+$C$14*A22 -> 980 | P22: =IF(AND($Q22<$R22,$R22>$S22),M22,IF(AND($R22>$S22,$Q22>$S22),N22,O22)) -> 1192.727273 | Q22: =$D$15+$C$15*A22 -> 1196.363636 | R22: =$D$16+$C$16*A22 -> 1385.454545 | S22: =$D$17+$C$17*A22 -> 990 | T22: =IF(AND($Q22<$R22,$R22>$S22),Q22,IF(AND($R22>$S22,$Q22>$S22),R22,S22)) -> 1196.363636 | U22: =B18/100 -> 18.18181818 | V22: 1 | W22: PAF1 | X22: =IF(W22="PAF1",U22,"") -> 18.18181818 | Y22: =IF(W22="PAF2",U22,"") ->  | Z22: =IF(W22="PAF3",U22,"") -> 
A23: =A22+$A$22 -> 36.36363636 | B23: =($C$2*A23)+($D$2) -> 137454.5455 | C23: =($B$5*(A23*A23))+($C$5*A23) -> 43371.90083 | D23: =($B$6*(A23*A23))+($C$6*A23) -> 49851.23967 | E23: =($B$7*(A23*A23))+($C$7*A23) -> 35636.36364 | F23: =T23*A23 -> 43371.90083 | G23: =B23-$D$4 -> 17454.54545 | H23: =$D$4 -> 120000 | I23: =$D$8+($E$8/A23) -> 3780 | J23: =$D$9 -> 480 | K23: =$D$11 -> 480 | L23: =F23-B23 -> -94082.64463 | M23: =$D$12+$C$12*A23 -> 1185.454545 | N23: =$D$13+$C$13*A23 -> 1341.818182 | O23: =$D$14+$C$14*A23 -> 960 | P23: =IF(AND($Q23<$R23,$R23>$S23),M23,IF(AND($R23>$S23,$Q23>$S23),N23,O23)) -> 1185.454545 | Q23: =$D$15+$C$15*A23 -> 1192.727273 | R23: =$D$16+$C$16*A23 -> 1370.909091 | S23: =$D$17+$C$17*A23 -> 980 | T23: 1192.727273 | U23: =U22+$U$22 -> 36.36363636 | V23: 2 | W23: PAF1 | X23: =IF(W23="PAF1",U23,"") -> 36.36363636 | Y23: =IF(W23="PAF2",U23,"") ->  | Z23: =IF(W23="PAF3",U23,"") -> 
A24: =A23+$A$22 -> 54.54545455 | B24: 146181.8182 | C24: 64859.50413 | D24: 73983.47107 | E24: 52909.09091 | F24: 64859.50413 | G24: 26181.81818 | H24: 120000 | I24: 2680 | J24: 480 | K24: 480 | L24: -81322.31405 | M24: 1178.181818 | N24: 1312.727273 | O24: 940 | P24: =IF(AND($Q24<$R24,$R24>$S24),M24,IF(AND($R24>$S24,$Q24>$S24),N24,O24)) -> 1178.181818 | Q24: 1189.090909 | R24: 1356.363636 | S24: 970 | T24: 1189.090909 | U24: =U23+$U$22 -> 54.54545455 | V24: 3 | W24: PAF1 | X24: 54.54545455
A25: =A24+$A$22 -> 72.72727273 | B25: 154909.0909 | C25: 86214.87603 | D25: 97586.77686 | E25: 69818.18182 | F25: 86214.87603 | G25: 34909.09091 | H25: 120000 | I25: 2130 | J25: 480 | K25: 480 | L25: -68694.21488 | M25: 1170.909091 | N25: 1283.636364 | O25: 920 | P25: 1170.909091 | Q25: 1185.454545 | R25: 1341.818182 | S25: 960 | T25: 1185.454545 | U25: 72.72727273 | V25: 4 | W25: PAF1 | X25: 72.72727273
A26: 90.90909091 | B26: 163636.3636 | C26: 107438.0165 | D26: 120661.157 | E26: 86363.63636 | F26: 107438.0165 | G26: 43636.36364 | H26: 120000 | I26: 1800 | J26: 480 | K26: 480 | L26: -56198.34711 | M26: 1163.636364 | N26: 1254.545455 | O26: 900 | P26: 1163.636364 | Q26: 1181.818182 | R26: 1327.272727 | S26: 950 | T26: 1181.818182 | U26: 90.90909091 | V26: 5 | W26: PAF1 | X26: 90.90909091
A27: 109.0909091 | B27: 172363.6364 | C27: 128528.9256 | D27: 143206.6116 | E27: 102545.4545 | F27: 128528.9256 | G27: 52363.63636 | H27: 120000 | I27: 1580 | J27: 480 | K27: 480 | L27: -43834.71074 | M27: 1156.363636 | N27: 1225.454545 | O27: 880 | P27: 1156.363636 | Q27: 1178.181818 | R27: 1312.727273 | S27: 940 | T27: 1178.181818 | U27: 109.0909091 | V27: 6 | W27: PAF1 | X27: 109.0909091
A28: 127.2727273 | B28: 181090.9091 | C28: 149487.6033 | D28: 165223.1405 | E28: 118363.6364 | F28: 149487.6033 | G28: 61090.90909 | H28: 120000 | I28: 1422.857143 | J28: 480 | K28: 480 | L28: -31603.30579 | M28: 1149.090909 | N28: 1196.363636 | O28: 860 | P28: 1149.090909 | Q28: 1174.545455 | R28: 1298.181818 | S28: 930 | T28: 1174.545455 | U28: 127.2727273 | V28: 7 | W28: PAF1 | X28: 127.2727273
A29: 145.4545455 | B29: 189818.1818 | C29: 170314.0496 | D29: 186710.7438 | E29: 133818.1818 | F29: 170314.0496 | G29: 69818.18182 | H29: 120000 | I29: 1305 | J29: 480 | K29: 480 | L29: -19504.13223 | M29: 1141.818182 | N29: 1167.272727 | O29: 840 | P29: 1141.818182 | Q29: 1170.909091 | R29: 1283.636364 | S29: 920 | T29: 1170.909091 | U29: 145.4545455 | V29: 8 | W29: PAF1 | X29: 145.4545455
A30: 163.6363636 | B30: 198545.4545 | C30: 191008.2645 | D30: 207669.4215 | E30: 148909.0909 | F30: 191008.2645 | G30: 78545.45455 | H30: 120000 | I30: 1213.333333 | J30: 480 | K30: 480 | L30: -7537.190083 | M30: 1134.545455 | N30: 1138.181818 | O30: 820 | P30: 1134.545455 | Q30: 1167.272727 | R30: 1269.090909 | S30: 910 | T30: 1167.272727 | U30: 163.6363636 | V30: 9 | W30: PAF1 | X30: 163.6363636
A31: 181.8181818 | B31: 207272.7273 | C31: 211570.2479 | D31: 228099.1736 | E31: 163636.3636 | F31: 211570.2479 | G31: 87272.72727 | H31: 120000 | I31: 1140 | J31: 480 | K31: 480 | L31: 4297.520661 | M31: 1127.272727 | N31: 1109.090909 | O31: 800 | P31: 1127.272727 | Q31: 1163.636364 | R31: 1254.545455 | S31: 900 | T31: 1163.636364 | U31: 181.8181818 | V31: 10 | W31: PAF1 | X31: 181.8181818
A32: 200 | B32: 216000 | C32: 232000 | D32: 248000 | E32: 178000 | F32: 232000 | G32: 96000 | H32: 120000 | I32: 1080 | J32: 480 | K32: 480 | L32: 16000 | M32: 1120 | N32: 1080 | O32: 780 | P32: 1120 | Q32: 1160 | R32: 1240 | S32: 890 | T32: 1160 | U32: 200 | V32: 11 | W32: PAF1 | X32: 200
A33: 218.1818182 | B33: 224727.2727 | C33: 252297.5207 | D33: 267371.9008 | E33: 192000 | F33: 252297.5207 | G33: 104727.2727 | H33: 120000 | I33: 1030 | J33: 480 | K33: 480 | L33: 27570.24793 | M33: 1112.727273 | N33: 1050.909091 | O33: 760 | P33: 1112.727273 | Q33: 1156.363636 | R33: 1225.454545 | S33: 880 | T33: 1156.363636 | U33: 218.1818182 | V33: 12 | W33: PAF1 | X33: 218.1818182
A34: 236.3636364 | B34: 233454.5455 | C34: 272462.8099 | D34: 286214.876 | E34: 205636.3636 | F34: 272462.8099 | G34: 113454.5455 | H34: 120000 | I34: 987.6923077 | J34: 480 | K34: 480 | L34: 39008.26446 | M34: 1105.454545 | N34: 1021.818182 | O34: 740 | P34: 1105.454545 | Q34: 1152.727273 | R34: 1210.909091 | S34: 870 | T34: 1152.727273 | U34: 236.3636364 | V34: 13 | W34: PAF1 | X34: 236.3636364
A35: 254.5454545 | B35: 242181.8182 | C35: 292495.8678 | D35: 304528.9256 | E35: 218909.0909 | F35: 292495.8678 | G35: 122181.8182 | H35: 120000 | I35: 951.4285714 | J35: 480 | K35: 480 | L35: 50314.04959 | M35: 1098.181818 | N35: 992.7272727 | O35: 720 | P35: 1098.181818 | Q35: 1149.090909 | R35: 1196.363636 | S35: 860 | T35: 1149.090909 | U35: 254.5454545 | V35: 14 | W35: PAF1 | X35: 254.5454545
A36: 272.7272727 | B36: 250909.0909 | C36: 312396.6942 | D36: 322314.0496 | E36: 231818.1818 | F36: 312396.6942 | G36: 130909.0909 | H36: 120000 | I36: 920 | J36: 480 | K36: 480 | L36: 61487.60331 | M36: 1090.909091 | N36: 963.6363636 | O36: 700 | P36: 1090.909091 | Q36: 1145.454545 | R36: 1181.818182 | S36: 850 | T36: 1145.454545 | U36: 272.7272727 | V36: 15 | W36: PAF1 | X36: 272.7272727
A37: 290.9090909 | B37: 259636.3636 | C37: 332165.2893 | D37: 339570.2479 | E37: 244363.6364 | F37: 332165.2893 | G37: 139636.3636 | H37: 120000 | I37: 892.5 | J37: 480 | K37: 480 | L37: 72528.92562 | M37: 1083.636364 | N37: 934.5454545 | O37: 680 | P37: 1083.636364 | Q37: 1141.818182 | R37: 1167.272727 | S37: 840 | T37: 1141.818182 | U37: 290.9090909 | V37: 16 | W37: PAF1 | X37: 290.9090909
A38: 309.0909091 | B38: 268363.6364 | C38: 351801.6529 | D38: 356297.5207 | E38: 256545.4545 | F38: 351801.6529 | G38: 148363.6364 | H38: 120000 | I38: 868.2352941 | J38: 480 | K38: 480 | L38: 83438.01653 | M38: 1076.363636 | N38: 905.4545455 | O38: 660 | P38: 1076.363636 | Q38: 1138.181818 | R38: 1152.727273 | S38: 830 | T38: 1138.181818 | U38: 309.0909091 | V38: 17 | W38: PAF1 | X38: 309.0909091
A39: 327.2727273 | B39: 277090.9091 | C39: 371305.7851 | D39: 372495.8678 | E39: 268363.6364 | F39: 371305.7851 | G39: 157090.9091 | H39: 120000 | I39: 846.6666667 | J39: 480 | K39: 480 | L39: 94214.87603 | M39: 1069.090909 | N39: 876.3636364 | O39: 640 | P39: 1069.090909 | Q39: 1134.545455 | R39: 1138.181818 | S39: 820 | T39: 1134.545455 | U39: 327.2727273 | V39: 18 | W39: PAF1 | X39: 327.2727273
A40: 345.4545455 | B40: 285818.1818 | C40: 390677.686 | D40: 388165.2893 | E40: 279818.1818 | F40: 388165.2893 | G40: 165818.1818 | H40: 120000 | I40: 827.3684211 | J40: 480 | K40: 480 | L40: 102347.1074 | M40: 1061.818182 | N40: 847.2727273 | O40: 620 | P40: 847.2727273 | Q40: 1130.909091 | R40: 1123.636364 | S40: 810 | T40: 1123.636364 | U40: 345.4545455 | V40: 19 | W40: PAF2 | Y40: 345.4545455
A41: 363.6363636 | B41: 294545.4545 | C41: 409917.3554 | D41: 403305.7851 | E41: 290909.0909 | F41: 403305.7851 | G41: 174545.4545 | H41: 120000 | I41: 810 | J41: 480 | K41: 480 | L41: 108760.3306 | M41: 1054.545455 | N41: 818.1818182 | O41: 600 | P41: 818.1818182 | Q41: 1127.272727 | R41: 1109.090909 | S41: 800 | T41: 1109.090909 | U41: 363.6363636 | V41: 20 | W41: PAF2 | Y41: 363.6363636
A42: 381.8181818 | B42: 303272.7273 | C42: 429024.7934 | D42: 417917.3554 | E42: 301636.3636 | F42: 417917.3554 | G42: 183272.7273 | H42: 120000 | I42: 794.2857143 | J42: 480 | K42: 480 | L42: 114644.6281 | M42: 1047.272727 | N42: 789.0909091 | O42: 580 | P42: 789.0909091 | Q42: 1123.636364 | R42: 1094.545455 | S42: 790 | T42: 1094.545455 | U42: 381.8181818 | V42: 21 | W42: PAF2 | Y42: 381.8181818
A43: 400 | B43: 312000 | C43: 448000 | D43: 432000 | E43: 312000 | F43: 432000 | G43: 192000 | H43: 120000 | I43: 780 | J43: 480 | K43: 480 | L43: 120000 | M43: 1040 | N43: 760 | O43: 560 | P43: 760 | Q43: 1120 | R43: 1080 | S43: 780 | T43: 1080 | U43: 400 | V43: 22 | W43: PAF2 | Y43: 400
A44: 418.1818182 | B44: 320727.2727 | C44: 466842.9752 | D44: 445553.719 | E44: 322000 | F44: 445553.719 | G44: 200727.2727 | H44: 120000 | I44: 766.9565217 | J44: 480 | K44: 480 | L44: 124826.4463 | M44: 1032.727273 | N44: 730.9090909 | O44: 540 | P44: 730.9090909 | Q44: 1116.363636 | R44: 1065.454545 | S44: 770 | T44: 1065.454545 | U44: 418.1818182 | V44: 23 | W44: PAF2 | Y44: 418.1818182
A45: 436.3636364 | B45: 329454.5455 | C45: 485553.719 | D45: 458578.5124 | E45: 331636.3636 | F45: 458578.5124 | G45: 209454.5455 | H45: 120000 | I45: 755 | J45: 480 | K45: 480 | L45: 129123.9669 | M45: 1025.454545 | N45: 701.8181818 | O45: 520 | P45: 701.8181818 | Q45: 1112.727273 | R45: 1050.909091 | S45: 760 | T45: 1050.909091 | U45: 436.3636364 | V45: 24 | W45: PAF2 | Y45: 436.3636364
A46: 454.5454545 | B46: 338181.8182 | C46: 504132.2314 | D46: 471074.3802 | E46: 340909.0909 | F46: 471074.3802 | G46: 218181.8182 | H46: 120000 | I46: 744 | J46: 480 | K46: 480 | L46: 132892.562 | M46: 1018.181818 | N46: 672.7272727 | O46: 500 | P46: 672.7272727 | Q46: 1109.090909 | R46: 1036.363636 | S46: 750 | T46: 1036.363636 | U46: 454.5454545 | V46: 25 | W46: PAF2 | Y46: 454.5454545
A47: 472.7272727 | B47: 346909.0909 | C47: 522578.5124 | D47: 483041.3223 | E47: 349818.1818 | F47: 483041.3223 | G47: 226909.0909 | H47: 120000 | I47: 733.8461538 | J47: 480 | K47: 480 | L47: 136132.2314 | M47: 1010.909091 | N47: 643.6363636 | O47: 480 | P47: 643.6363636 | Q47: 1105.454545 | R47: 1021.818182 | S47: 740 | T47: 1021.818182 | U47: 472.7272727 | V47: 26 | W47: PAF2 | Y47: 472.7272727
A48: 490.9090909 | B48: 355636.3636 | C48: 540892.562 | D48: 494479.3388 | E48: 358363.6364 | F48: 494479.3388 | G48: 235636.3636 | H48: 120000 | I48: 724.4444444 | J48: 480 | K48: 480 | L48: 138842.9752 | M48: 1003.636364 | N48: 614.5454545 | O48: 460 | P48: 614.5454545 | Q48: 1101.818182 | R48: 1007.272727 | S48: 730 | T48: 1007.272727 | U48: 490.9090909 | V48: 27 | W48: PAF2 | Y48: 490.9090909
A49: 509.0909091 | B49: 364363.6364 | C49: 559074.3802 | D49: 505388.4298 | E49: 366545.4545 | F49: 505388.4298 | G49: 244363.6364 | H49: 120000 | I49: 715.7142857 | J49: 480 | K49: 480 | L49: 141024.7934 | M49: 996.3636364 | N49: 585.4545455 | O49: 440 | P49: 585.4545455 | Q49: 1098.181818 | R49: 992.7272727 | S49: 720 | T49: 992.7272727 | U49: 509.0909091 | V49: 28 | W49: PAF2 | Y49: 509.0909091
A50: 527.2727273 | B50: 373090.9091 | C50: 577123.9669 | D50: 515768.595 | E50: 374363.6364 | F50: 515768.595 | G50: 253090.9091 | H50: 120000 | I50: 707.5862069 | J50: 480 | K50: 480 | L50: 142677.686 | M50: 989.0909091 | N50: 556.3636364 | O50: 420 | P50: 556.3636364 | Q50: 1094.545455 | R50: 978.1818182 | S50: 710 | T50: 978.1818182 | U50: 527.2727273 | V50: 29 | W50: PAF2 | Y50: 527.2727273
A51: 545.4545455 | B51: 381818.1818 | C51: 595041.3223 | D51: 525619.8347 | E51: 381818.1818 | F51: 525619.8347 | G51: 261818.1818 | H51: 120000 | I51: 700 | J51: 480 | K51: 480 | L51: 143801.6529 | M51: 981.8181818 | N51: 527.2727273 | O51: 400 | P51: 527.2727273 | Q51: 1090.909091 | R51: 963.6363636 | S51: 700 | T51: 963.6363636 | U51: 545.4545455 | V51: 30 | W51: PAF2 | Y51: 545.4545455
A52: 563.6363636 | B52: 390545.4545 | C52: 612826.4463 | D52: 534942.1488 | E52: 388909.0909 | F52: 534942.1488 | G52: 270545.4545 | H52: 120000 | I52: 692.9032258 | J52: 480 | K52: 480 | L52: 144396.6942 | M52: 974.5454545 | N52: 498.1818182 | O52: 380 | P52: 498.1818182 | Q52: 1087.272727 | R52: 949.0909091 | S52: 690 | T52: 949.0909091 | U52: 563.6363636 | V52: 31 | W52: PAF2 | Y52: 563.6363636
A53: 581.8181818 | B53: 399272.7273 | C53: 630479.3388 | D53: 543735.5372 | E53: 395636.3636 | F53: 543735.5372 | G53: 279272.7273 | H53: 120000 | I53: 686.25 | J53: 480 | K53: 480 | L53: 144462.8099 | M53: 967.2727273 | N53: 469.0909091 | O53: 360 | P53: 469.0909091 | Q53: 1083.636364 | R53: 934.5454545 | S53: 680 | T53: 934.5454545 | U53: 581.8181818 | V53: 32 | W53: PAF2 | Y53: 581.8181818
A54: 600 | B54: 408000 | C54: 648000 | D54: 552000 | E54: 402000 | F54: 552000 | G54: 288000 | H54: 120000 | I54: 680 | J54: 480 | K54: 480 | L54: 144000 | M54: 960 | N54: 440 | O54: 340 | P54: 440 | Q54: 1080 | R54: 920 | S54: 670 | T54: 920 | U54: 600 | V54: 33 | W54: PAF2 | Y54: 600
A55: 618.1818182 | B55: 416727.2727 | C55: 665388.4298 | D55: 559735.5372 | E55: 408000 | F55: 559735.5372 | G55: 296727.2727 | H55: 120000 | I55: 674.1176471 | J55: 480 | K55: 480 | L55: 143008.2645 | M55: 952.7272727 | N55: 410.9090909 | O55: 320 | P55: 410.9090909 | Q55: 1076.363636 | R55: 905.4545455 | S55: 660 | T55: 905.4545455 | U55: 618.1818182 | V55: 34 | W55: PAF2 | Y55: 618.1818182
A56: 636.3636364 | B56: 425454.5455 | C56: 682644.6281 | D56: 566942.1488 | E56: 413636.3636 | F56: 566942.1488 | G56: 305454.5455 | H56: 120000 | I56: 668.5714286 | J56: 480 | K56: 480 | L56: 141487.6033 | M56: 945.4545455 | N56: 381.8181818 | O56: 300 | P56: 381.8181818 | Q56: 1072.727273 | R56: 890.9090909 | S56: 650 | T56: 890.9090909 | U56: 636.3636364 | V56: 35 | W56: PAF2 | Y56: 636.3636364
A57: 654.5454545 | B57: 434181.8182 | C57: 699768.595 | D57: 573619.8347 | E57: 418909.0909 | F57: 573619.8347 | G57: 314181.8182 | H57: 120000 | I57: 663.3333333 | J57: 480 | K57: 480 | L57: 139438.0165 | M57: 938.1818182 | N57: 352.7272727 | O57: 280 | P57: 352.7272727 | Q57: 1069.090909 | R57: 876.3636364 | S57: 640 | T57: 876.3636364 | U57: 654.5454545 | V57: 36 | W57: PAF2 | Y57: 654.5454545
A58: 672.7272727 | B58: 442909.0909 | C58: 716760.3306 | D58: 579768.595 | E58: 423818.1818 | F58: 579768.595 | G58: 322909.0909 | H58: 120000 | I58: 658.3783784 | J58: 480 | K58: 480 | L58: 136859.5041 | M58: 930.9090909 | N58: 323.6363636 | O58: 260 | P58: 323.6363636 | Q58: 1065.454545 | R58: 861.8181818 | S58: 630 | T58: 861.8181818 | U58: 672.7272727 | V58: 37 | W58: PAF2 | Y58: 672.7272727
A59: 690.9090909 | B59: 451636.3636 | C59: 733619.8347 | D59: 585388.4298 | E59: 428363.6364 | F59: 585388.4298 | G59: 331636.3636 | H59: 120000 | I59: 653.6842105 | J59: 480 | K59: 480 | L59: 133752.0661 | M59: 923.6363636 | N59: 294.5454545 | O59: 240 | P59: 294.5454545 | Q59: 1061.818182 | R59: 847.2727273 | S59: 620 | T59: 847.2727273 | U59: 690.9090909 | V59: 38 | W59: PAF2 | Y59: 690.9090909
A60: 709.0909091 | B60: 460363.6364 | C60: 750347.1074 | D60: 590479.3388 | E60: 432545.4545 | F60: 590479.3388 | G60: 340363.6364 | H60: 120000 | I60: 649.2307692 | J60: 480 | K60: 480 | L60: 130115.7025 | M60: 916.3636364 | N60: 265.4545455 | O60: 220 | P60: 265.4545455 | Q60: 1058.181818 | R60: 832.7272727 | S60: 610 | T60: 832.7272727 | U60: 709.0909091 | V60: 39 | W60: PAF2 | Y60: 709.0909091
A61: 727.2727273 | B61: 469090.9091 | C61: 766942.1488 | D61: 595041.3223 | E61: 436363.6364 | F61: 595041.3223 | G61: 349090.9091 | H61: 120000 | I61: 645 | J61: 480 | K61: 480 | L61: 125950.4132 | M61: 909.0909091 | N61: 236.3636364 | O61: 200 | P61: 236.3636364 | Q61: 1054.545455 | R61: 818.1818182 | S61: 600 | T61: 818.1818182 | U61: 727.2727273 | V61: 40 | W61: PAF2 | Y61: 727.2727273
A62: 745.4545455 | B62: 477818.1818 | C62: 783404.9587 | D62: 599074.3802 | E62: 439818.1818 | F62: 599074.3802 | G62: 357818.1818 | H62: 120000 | I62: 640.9756098 | J62: 480 | K62: 480 | L62: 121256.1983 | M62: 901.8181818 | N62: 207.2727273 | O62: 180 | P62: 207.2727273 | Q62: 1050.909091 | R62: 803.6363636 | S62: 590 | T62: 803.6363636 | U62: 745.4545455 | V62: 41 | W62: PAF2 | Y62: 745.4545455
A63: 763.6363636 | B63: 486545.4545 | C63: 799735.5372 | D63: 602578.5124 | E63: 442909.0909 | F63: 602578.5124 | G63: 366545.4545 | H63: 120000 | I63: 637.1428571 | J63: 480 | K63: 480 | L63: 116033.0579 | M63: 894.5454545 | N63: 178.1818182 | O63: 160 | P63: 178.1818182 | Q63: 1047.272727 | R63: 789.0909091 | S63: 580 | T63: 789.0909091 | U63: 763.6363636 | V63: 42 | W63: PAF2 | Y63: 763.6363636
A64: 781.8181818 | B64: 495272.7273 | C64: 815933.8843 | D64: 605553.719 | E64: 445636.3636 | F64: 605553.719 | G64: 375272.7273 | H64: 120000 | I64: 633.4883721 | J64: 480 | K64: 480 | L64: 110280.9917 | M64: 887.2727273 | N64: 149.0909091 | O64: 140 | P64: 149.0909091 | Q64: 1043.636364 | R64: 774.5454545 | S64: 570 | T64: 774.5454545 | U64: 781.8181818 | V64: 43 | W64: PAF2 | Y64: 781.8181818
A65: 800 | B65: 504000 | C65: 832000 | D65: 608000 | E65: 448000 | F65: 608000 | G65: 384000 | H65: 120000 | I65: 630 | J65: 480 | K65: 480 | L65: 104000 | M65: 880 | N65: 120 | O65: 120 | P65: 120 | Q65: 1040 | R65: 760 | S65: 560 | T65: 760 | U65: 800 | V65: 44 | W65: PAF2 | Y65: 800
A66: 818.1818182 | B66: 512727.2727 | C66: 847933.8843 | D66: 609917.3554 | E66: 450000 | F66: 609917.3554 | G66: 392727.2727 | H66: 120000 | I66: 626.6666667 | J66: 480 | K66: 480 | L66: 97190.08264 | M66: 872.7272727 | N66: 90.90909091 | O66: 100 | P66: 90.90909091 | Q66: 1036.363636 | R66: 745.4545455 | S66: 550 | T66: 745.4545455 | U66: 818.1818182 | V66: 45 | W66: PAF2 | Y66: 818.1818182
A67: 836.3636364 | B67: 521454.5455 | C67: 863735.5372 | D67: 611305.7851 | E67: 451636.3636 | F67: 611305.7851 | G67: 401454.5455 | H67: 120000 | I67: 623.4782609 | J67: 480 | K67: 480 | L67: 89851.23967 | M67: 865.4545455 | N67: 61.81818182 | O67: 80 | P67: 61.81818182 | Q67: 1032.727273 | R67: 730.9090909 | S67: 540 | T67: 730.9090909 | U67: 836.3636364 | V67: 46 | W67: PAF2 | Y67: 836.3636364
A68: 854.5454545 | B68: 530181.8182 | C68: 879404.9587 | D68: 612165.2893 | E68: 452909.0909 | F68: 612165.2893 | G68: 410181.8182 | H68: 120000 | I68: 620.4255319 | J68: 480 | K68: 480 | L68: 81983.47107 | M68: 858.1818182 | N68: 32.72727273 | O68: 60 | P68: 32.72727273 | Q68: 1029.090909 | R68: 716.3636364 | S68: 530 | T68: 716.3636364 | U68: 854.5454545 | V68: 47 | W68: PAF2 | Y68: 854.5454545
A69: 872.7272727 | B69: 538909.0909 | C69: 894942.1488 | D69: 612495.8678 | E69: 453818.1818 | F69: 612495.8678 | G69: 418909.0909 | H69: 120000 | I69: 617.5 | J69: 480 | K69: 480 | L69: 73586.77686 | M69: 850.9090909 | N69: 3.636363636 | O69: 40 | P69: 3.636363636 | Q69: 1025.454545 | R69: 701.8181818 | S69: 520 | T69: 701.8181818 | U69: 872.7272727 | V69: 48 | W69: PAF2 | Y69: 872.7272727
A70: 890.9090909 | B70: 547636.3636 | C70: 910347.1074 | D70: 612297.5207 | E70: 454363.6364 | F70: 612297.5207 | G70: 427636.3636 | H70: 120000 | I70: 614.6938776 | J70: 480 | K70: 480 | L70: 64661.15702 | M70: 843.6363636 | N70: -25.45454545 | O70: 20 | P70: -25.45454545 | Q70: 1021.818182 | R70: 687.2727273 | S70: 510 | T70: 687.2727273 | U70: 890.9090909 | V70: 49 | W70: PAF2 | Y70: 890.9090909
A71: 909.0909091 | B71: 556363.6364 | C71: 925619.8347 | D71: 611570.2479 | E71: 454545.4545 | F71: 611570.2479 | G71: 436363.6364 | H71: 120000 | I71: 612 | J71: 480 | K71: 480 | L71: 55206.61157 | M71: 836.3636364 | N71: -54.54545455 | O71: 1.023181539e-12 | P71: -54.54545455 | Q71: 1018.181818 | R71: 672.7272727 | S71: 500 | T71: 672.7272727 | U71: 909.0909091 | V71: 50 | W71: PAF2 | Y71: 909.0909091
A72: 927.2727273 | B72: 565090.9091 | C72: 940760.3306 | D72: 610314.0496 | E72: 454363.6364 | F72: 610314.0496 | G72: 445090.9091 | H72: 120000 | I72: 609.4117647 | J72: 480 | K72: 480 | L72: 45223.1405 | M72: 829.0909091 | N72: -83.63636364 | O72: -20 | P72: -83.63636364 | Q72: 1014.545455 | R72: 658.1818182 | S72: 490 | T72: 658.1818182 | U72: 927.2727273 | V72: 51 | W72: PAF2 | Y72: 927.2727273
A73: 945.4545455 | B73: 573818.1818 | C73: 955768.595 | D73: 608528.9256 | E73: 453818.1818 | F73: 608528.9256 | G73: 453818.1818 | H73: 120000 | I73: 606.9230769 | J73: 480 | K73: 480 | L73: 34710.7438 | M73: 821.8181818 | N73: -112.7272727 | O73: -40 | P73: -112.7272727 | Q73: 1010.909091 | R73: 643.6363636 | S73: 480 | T73: 643.6363636 | U73: 945.4545455 | V73: 52 | W73: PAF2 | Y73: 945.4545455
A74: 963.6363636 | B74: 582545.4545 | C74: 970644.6281 | D74: 606214.876 | E74: 452909.0909 | F74: 606214.876 | G74: 462545.4545 | H74: 120000 | I74: 604.5283019 | J74: 480 | K74: 480 | L74: 23669.42149 | M74: 814.5454545 | N74: -141.8181818 | O74: -60 | P74: -141.8181818 | Q74: 1007.272727 | R74: 629.0909091 | S74: 470 | T74: 629.0909091 | U74: 963.6363636 | V74: 53 | W74: PAF2 | Y74: 963.6363636
A75: 981.8181818 | B75: 591272.7273 | C75: 985388.4298 | D75: 603371.9008 | E75: 451636.3636 | F75: 603371.9008 | G75: 471272.7273 | H75: 120000 | I75: 602.2222222 | J75: 480 | K75: 480 | L75: 12099.17355 | M75: 807.2727273 | N75: -170.9090909 | O75: -80 | P75: -170.9090909 | Q75: 1003.636364 | R75: 614.5454545 | S75: 460 | T75: 614.5454545 | U75: 981.8181818 | V75: 54 | W75: PAF2 | Y75: 981.8181818
A76: 1000 | B76: 600000 | C76: 1000000 | D76: 600000 | E76: 450000 | F76: 600000 | G76: 480000 | H76: 120000 | I76: 600 | J76: 480 | K76: 480 | L76: 0 | M76: 800 | N76: -200 | O76: -100 | P76: -200 | Q76: 1000 | R76: 600 | S76: 450 | T76: 600 | U76: 1000 | V76: 55 | W76: PAF2 | Y76: 1000
A77: 1018.181818 | B77: 608727.2727 | C77: 1014479.339 | D77: 596099.1736 | E77: 448000 | F77: 596099.1736 | G77: 488727.2727 | H77: 120000 | I77: 597.8571429 | J77: 480 | K77: 480 | L77: -12628.09917 | M77: 792.7272727 | N77: -229.0909091 | O77: -120 | P77: -229.0909091 | Q77: 996.3636364 | R77: 585.4545455 | S77: 440 | T77: 585.4545455 | U77: 1018.181818 | V77: 56 | W77: PAF2 | Y77: 1018.181818
A78: 1036.363636 | B78: 617454.5455 | C78: 1028826.446 | D78: 591669.4215 | E78: 445636.3636 | F78: 591669.4215 | G78: 497454.5455 | H78: 120000 | I78: 595.7894737 | J78: 480 | K78: 480 | L78: -25785.12397 | M78: 785.4545455 | N78: -258.1818182 | O78: -140 | P78: -258.1818182 | Q78: 992.7272727 | R78: 570.9090909 | S78: 430 | T78: 570.9090909 | U78: 1036.363636 | V78: 57 | W78: PAF2 | Y78: 1036.363636
A79: 1054.545455 | B79: 626181.8182 | C79: 1043041.322 | D79: 586710.7438 | E79: 442909.0909 | F79: 586710.7438 | G79: 506181.8182 | H79: 120000 | I79: 593.7931034 | J79: 480 | K79: 480 | L79: -39471.07438 | M79: 778.1818182 | N79: -287.2727273 | O79: -160 | P79: -287.2727273 | Q79: 989.0909091 | R79: 556.3636364 | S79: 420 | T79: 556.3636364 | U79: 1054.545455 | V79: 58 | W79: PAF2 | Y79: 1054.545455
A80: 1072.727273 | B80: 634909.0909 | C80: 1057123.967 | D80: 581223.1405 | E80: 439818.1818 | F80: 581223.1405 | G80: 514909.0909 | H80: 120000 | I80: 591.8644068 | J80: 480 | K80: 480 | L80: -53685.95041 | M80: 770.9090909 | N80: -316.3636364 | O80: -180 | P80: -316.3636364 | Q80: 985.4545455 | R80: 541.8181818 | S80: 410 | T80: 541.8181818 | U80: 1072.727273 | V80: 59 | W80: PAF2 | Y80: 1072.727273
A81: 1090.909091 | B81: 643636.3636 | C81: 1071074.38 | D81: 575206.6116 | E81: 436363.6364 | F81: 575206.6116 | G81: 523636.3636 | H81: 120000 | I81: 590 | J81: 480 | K81: 480 | L81: -68429.75207 | M81: 763.6363636 | N81: -345.4545455 | O81: -200 | P81: -345.4545455 | Q81: 981.8181818 | R81: 527.2727273 | S81: 400 | T81: 527.2727273 | U81: 1090.909091 | V81: 60 | W81: PAF2 | Y81: 1090.909091
A82: 1109.090909 | B82: 652363.6364 | C82: 1084892.562 | D82: 568661.157 | E82: 432545.4545 | F82: 568661.157 | G82: 532363.6364 | H82: 120000 | I82: 588.1967213 | J82: 480 | K82: 480 | L82: -83702.47934 | M82: 756.3636364 | N82: -374.5454545 | O82: -220 | P82: -374.5454545 | Q82: 978.1818182 | R82: 512.7272727 | S82: 390 | T82: 512.7272727 | U82: 1109.090909 | V82: 61 | W82: PAF2 | Y82: 1109.090909
A83: 1127.272727 | B83: 661090.9091 | C83: 1098578.512 | D83: 561586.7769 | E83: 428363.6364 | F83: 561586.7769 | G83: 541090.9091 | H83: 120000 | I83: 586.4516129 | J83: 480 | K83: 480 | L83: -99504.13223 | M83: 749.0909091 | N83: -403.6363636 | O83: -240 | P83: -403.6363636 | Q83: 974.5454545 | R83: 498.1818182 | S83: 380 | T83: 498.1818182 | U83: 1127.272727 | V83: 62 | W83: PAF2 | Y83: 1127.272727
A84: 1145.454545 | B84: 669818.1818 | C84: 1112132.231 | D84: 553983.4711 | E84: 423818.1818 | F84: 553983.4711 | G84: 549818.1818 | H84: 120000 | I84: 584.7619048 | J84: 480 | K84: 480 | L84: -115834.7107 | M84: 741.8181818 | N84: -432.7272727 | O84: -260 | P84: -432.7272727 | Q84: 970.9090909 | R84: 483.6363636 | S84: 370 | T84: 483.6363636 | U84: 1145.454545 | V84: 63 | W84: PAF2 | Y84: 1145.454545
A85: 1163.636364 | B85: 678545.4545 | C85: 1125553.719 | D85: 545851.2397 | E85: 418909.0909 | F85: 545851.2397 | G85: 558545.4545 | H85: 120000 | I85: 583.125 | J85: 480 | K85: 480 | L85: -132694.2149 | M85: 734.5454545 | N85: -461.8181818 | O85: -280 | P85: -461.8181818 | Q85: 967.2727273 | R85: 469.0909091 | S85: 360 | T85: 469.0909091 | U85: 1163.636364 | V85: 64 | W85: =IF(T85=Q85,"PAF1",IF(T85=R85,"PAF2","PAF3")) -> PAF2 | Y85: 1163.636364
A86: 1181.818182 | B86: 687272.7273 | C86: 1138842.975 | D86: 537190.0826 | E86: 413636.3636 | F86: 537190.0826 | G86: 567272.7273 | H86: 120000 | I86: 581.5384615 | J86: 480 | K86: 480 | L86: -150082.6446 | M86: 727.2727273 | N86: -490.9090909 | O86: -300 | P86: -490.9090909 | Q86: 963.6363636 | R86: 454.5454545 | S86: 350 | T86: =IF(AND($Q86<$R86,$R86>$S86),Q86,IF(AND($R86>$S86,$Q86>$S86),R86,S86)) -> 454.5454545 | U86: 1181.818182 | V86: 65 | W86: PAF2 | Y86: 1181.818182
A87: 1200 | B87: =($C$2*A87)+($D$2) -> 696000 | C87: =($B$5*(A87*A87))+($C$5*A87) -> 1152000 | D87: =($B$6*(A87*A87))+($C$6*A87) -> 528000 | E87: =($B$7*(A87*A87))+($C$7*A87) -> 408000 | F87: =T87*A87 -> 528000 | G87: =B87-$D$4 -> 576000 | H87: =$D$4 -> 120000 | I87: =$D$8+($E$8/A87) -> 580 | J87: =$D$9 -> 480 | K87: =$D$11 -> 480 | L87: =F87-B87 -> -168000 | M87: =$D$12+$C$12*A87 -> 720 | N87: =$D$13+$C$13*A87 -> -520 | O87: =$D$14+$C$14*A87 -> -320 | P87: -520 | Q87: =$D$15+$C$15*A87 -> 960 | R87: =$D$16+$C$16*A87 -> 440 | S87: =$D$17+$C$17*A87 -> 340 | T87: 440 | U87: 1200 | V87: 66 | W87: PAF2 | X87: =IF(W87="PAF1",U87,"") ->  | Y87: =IF(W87="PAF2",U87,"") -> 1200 | Z87: =IF(W87="PAF3",U87,"") -> 
A88: 1218.181818 | B88: 704727.2727 | C88: 1165024.793 | D88: 518280.9917 | E88: 402000 | F88: 518280.9917 | G88: 584727.2727 | H88: 120000 | I88: 578.5074627 | J88: 480 | K88: 480 | L88: -186446.281 | M88: 712.7272727 | N88: -549.0909091 | O88: -340 | P88: =IF(AND($Q88<$R88,$R88>$S88),M88,IF(AND($R88>$S88,$Q88>$S88),N88,O88)) -> -549.0909091 | Q88: 956.3636364 | R88: 425.4545455 | S88: 330 | T88: 425.4545455 | U88: =U87+$U$22 -> 1218.181818 | V88: 67 | W88: PAF2 | Y88: 1218.181818
A89: =A88+$A$22 -> 1236.363636 | B89: 713454.5455 | C89: 1177917.355 | D89: 508033.0579 | E89: 395636.3636 | F89: 508033.0579 | G89: 593454.5455 | H89: 120000 | I89: 577.0588235 | J89: 480 | K89: 480 | L89: -205421.4876 | M89: 705.4545455 | N89: -578.1818182 | O89: -360 | P89: -578.1818182 | Q89: 952.7272727 | R89: 410.9090909 | S89: 320 | T89: 410.9090909 | U89: 1236.363636 | V89: 68 | W89: PAF2 | Y89: 1236.363636
A90: 1254.545455 | B90: 722181.8182 | C90: 1190677.686 | D90: 497256.1983 | E90: 388909.0909 | F90: 497256.1983 | G90: 602181.8182 | H90: 120000 | I90: 575.6521739 | J90: 480 | K90: 480 | L90: -224925.6198 | M90: 698.1818182 | N90: -607.2727273 | O90: -380 | P90: -607.2727273 | Q90: 949.0909091 | R90: 396.3636364 | S90: 310 | T90: 396.3636364 | U90: 1254.545455 | V90: 69 | W90: PAF2 | Y90: 1254.545455
A91: 1272.727273 | B91: 730909.0909 | C91: 1203305.785 | D91: 485950.4132 | E91: 381818.1818 | F91: 485950.4132 | G91: 610909.0909 | H91: 120000 | I91: 574.2857143 | J91: 480 | K91: 480 | L91: -244958.6777 | M91: 690.9090909 | N91: -636.3636364 | O91: -400 | P91: -636.3636364 | Q91: 945.4545455 | R91: 381.8181818 | S91: 300 | T91: 381.8181818 | U91: 1272.727273 | V91: 70 | W91: PAF2 | Y91: 1272.727273
A92: 1290.909091 | B92: 739636.3636 | C92: 1215801.653 | D92: 474115.7025 | E92: 374363.6364 | F92: 474115.7025 | G92: 619636.3636 | H92: 120000 | I92: 572.9577465 | J92: 480 | K92: 480 | L92: -265520.6612 | M92: 683.6363636 | N92: -665.4545455 | O92: -420 | P92: -665.4545455 | Q92: 941.8181818 | R92: 367.2727273 | S92: 290 | T92: 367.2727273 | U92: 1290.909091 | V92: 71 | W92: PAF2 | Y92: 1290.909091
A93: 1309.090909 | B93: 748363.6364 | C93: 1228165.289 | D93: 461752.0661 | E93: 366545.4545 | F93: 461752.0661 | G93: 628363.6364 | H93: 120000 | I93: 571.6666667 | J93: 480 | K93: 480 | L93: -286611.5702 | M93: 676.3636364 | N93: -694.5454545 | O93: -440 | P93: -694.5454545 | Q93: 938.1818182 | R93: 352.7272727 | S93: 280 | T93: 352.7272727 | U93: 1309.090909 | V93: 72 | W93: PAF2 | Y93: 1309.090909
A94: 1327.272727 | B94: 757090.9091 | C94: 1240396.694 | D94: 448859.5041 | E94: 358363.6364 | F94: 448859.5041 | G94: 637090.9091 | H94: 120000 | I94: 570.4109589 | J94: 480 | K94: 480 | L94: -308231.405 | M94: 669.0909091 | N94: -723.6363636 | O94: -460 | P94: -723.6363636 | Q94: 934.5454545 | R94: 338.1818182 | S94: 270 | T94: 338.1818182 | U94: 1327.272727 | V94: 73 | W94: PAF2 | Y94: 1327.272727
A95: 1345.454545 | B95: 765818.1818 | C95: 1252495.868 | D95: 435438.0165 | E95: 349818.1818 | F95: 435438.0165 | G95: 645818.1818 | H95: 120000 | I95: 569.1891892 | J95: 480 | K95: 480 | L95: -330380.1653 | M95: 661.8181818 | N95: -752.7272727 | O95: -480 | P95: -752.7272727 | Q95: 930.9090909 | R95: 323.6363636 | S95: 260 | T95: 323.6363636 | U95: 1345.454545 | V95: 74 | W95: PAF2 | Y95: 1345.454545
A96: 1363.636364 | B96: 774545.4545 | C96: 1264462.81 | D96: 421487.6033 | E96: 340909.0909 | F96: 421487.6033 | G96: 654545.4545 | H96: 120000 | I96: 568 | J96: 480 | K96: 480 | L96: -353057.8512 | M96: 654.5454545 | N96: -781.8181818 | O96: -500 | P96: -781.8181818 | Q96: 927.2727273 | R96: 309.0909091 | S96: 250 | T96: 309.0909091 | U96: 1363.636364 | V96: 75 | W96: PAF2 | Y96: 1363.636364
A97: 1381.818182 | B97: 783272.7273 | C97: 1276297.521 | D97: 407008.2645 | E97: 331636.3636 | F97: 407008.2645 | G97: 663272.7273 | H97: 120000 | I97: 566.8421053 | J97: 480 | K97: 480 | L97: -376264.4628 | M97: 647.2727273 | N97: -810.9090909 | O97: -520 | P97: -810.9090909 | Q97: 923.6363636 | R97: 294.5454545 | S97: 240 | T97: 294.5454545 | U97: 1381.818182 | V97: 76 | W97: PAF2 | Y97: 1381.818182
A98: 1400 | B98: 792000 | C98: 1288000 | D98: 392000 | E98: 322000 | F98: 392000 | G98: 672000 | H98: 120000 | I98: 565.7142857 | J98: 480 | K98: 480 | L98: -400000 | M98: 640 | N98: -840 | O98: -540 | P98: -840 | Q98: 920 | R98: 280 | S98: 230 | T98: 280 | U98: 1400 | V98: 77 | W98: PAF2 | Y98: 1400
A99: 1418.181818 | B99: 800727.2727 | C99: 1299570.248 | D99: 376462.8099 | E99: 312000 | F99: 376462.8099 | G99: 680727.2727 | H99: 120000 | I99: 564.6153846 | J99: 480 | K99: 480 | L99: -424264.4628 | M99: 632.7272727 | N99: -869.0909091 | O99: -560 | P99: -869.0909091 | Q99: 916.3636364 | R99: 265.4545455 | S99: 220 | T99: 265.4545455 | U99: 1418.181818 | V99: 78 | W99: PAF2 | Y99: 1418.181818
A100: 1436.363636 | B100: 809454.5455 | C100: 1311008.264 | D100: 360396.6942 | E100: 301636.3636 | F100: 360396.6942 | G100: 689454.5455 | H100: 120000 | I100: 563.5443038 | J100: 480 | K100: 480 | L100: -449057.8512 | M100: 625.4545455 | N100: -898.1818182 | O100: -580 | P100: -898.1818182 | Q100: 912.7272727 | R100: 250.9090909 | S100: 210 | T100: 250.9090909 | U100: 1436.363636 | V100: 79 | W100: PAF2 | Y100: 1436.363636
A101: 1454.545455 | B101: 818181.8182 | C101: 1322314.05 | D101: 343801.6529 | E101: 290909.0909 | F101: 343801.6529 | G101: 698181.8182 | H101: 120000 | I101: 562.5 | J101: 480 | K101: 480 | L101: -474380.1653 | M101: 618.1818182 | N101: -927.2727273 | O101: -600 | P101: -927.2727273 | Q101: 909.0909091 | R101: 236.3636364 | S101: 200 | T101: 236.3636364 | U101: 1454.545455 | V101: 80 | W101: PAF2 | Y101: 1454.545455
A102: 1472.727273 | B102: 826909.0909 | C102: 1333487.603 | D102: 326677.686 | E102: 279818.1818 | F102: 326677.686 | G102: 706909.0909 | H102: 120000 | I102: 561.4814815 | J102: 480 | K102: 480 | L102: -500231.405 | M102: 610.9090909 | N102: -956.3636364 | O102: -620 | P102: -956.3636364 | Q102: 905.4545455 | R102: 221.8181818 | S102: 190 | T102: 221.8181818 | U102: 1472.727273 | V102: 81 | W102: PAF2 | Y102: 1472.727273
A103: 1490.909091 | B103: 835636.3636 | C103: 1344528.926 | D103: 309024.7934 | E103: 268363.6364 | F103: 309024.7934 | G103: 715636.3636 | H103: 120000 | I103: 560.4878049 | J103: 480 | K103: 480 | L103: -526611.5702 | M103: 603.6363636 | N103: -985.4545455 | O103: -640 | P103: -985.4545455 | Q103: 901.8181818 | R103: 207.2727273 | S103: 180 | T103: 207.2727273 | U103: 1490.909091 | V103: 82 | W103: PAF2 | Y103: 1490.909091
A104: 1509.090909 | B104: 844363.6364 | C104: 1355438.017 | D104: 290842.9752 | E104: 256545.4545 | F104: 290842.9752 | G104: 724363.6364 | H104: 120000 | I104: 559.5180723 | J104: 480 | K104: 480 | L104: -553520.6612 | M104: 596.3636364 | N104: -1014.545455 | O104: -660 | P104: -1014.545455 | Q104: 898.1818182 | R104: 192.7272727 | S104: 170 | T104: 192.7272727 | U104: 1509.090909 | V104: 83 | W104: PAF2 | Y104: 1509.090909
A105: 1527.272727 | B105: 853090.9091 | C105: 1366214.876 | D105: 272132.2314 | E105: 244363.6364 | F105: 272132.2314 | G105: 733090.9091 | H105: 120000 | I105: 558.5714286 | J105: 480 | K105: 480 | L105: -580958.6777 | M105: 589.0909091 | N105: -1043.636364 | O105: -680 | P105: -1043.636364 | Q105: 894.5454545 | R105: 178.1818182 | S105: 160 | T105: 178.1818182 | U105: 1527.272727 | V105: 84 | W105: PAF2 | Y105: 1527.272727
A106: 1545.454545 | B106: 861818.1818 | C106: 1376859.504 | D106: 252892.562 | E106: 231818.1818 | F106: 252892.562 | G106: 741818.1818 | H106: 120000 | I106: 557.6470588 | J106: 480 | K106: 480 | L106: -608925.6198 | M106: 581.8181818 | N106: -1072.727273 | O106: -700 | P106: -1072.727273 | Q106: 890.9090909 | R106: 163.6363636 | S106: 150 | T106: 163.6363636 | U106: 1545.454545 | V106: 85 | W106: PAF2 | Y106: 1545.454545
A107: 1563.636364 | B107: 870545.4545 | C107: 1387371.901 | D107: 233123.9669 | E107: 218909.0909 | F107: 233123.9669 | G107: 750545.4545 | H107: 120000 | I107: 556.744186 | J107: 480 | K107: 480 | L107: -637421.4876 | M107: 574.5454545 | N107: -1101.818182 | O107: -720 | P107: -1101.818182 | Q107: 887.2727273 | R107: 149.0909091 | S107: 140 | T107: 149.0909091 | U107: 1563.636364 | V107: 86 | W107: PAF2 | Y107: 1563.636364
A108: 1581.818182 | B108: 879272.7273 | C108: 1397752.066 | D108: 212826.4463 | E108: 205636.3636 | F108: 212826.4463 | G108: 759272.7273 | H108: 120000 | I108: 555.862069 | J108: 480 | K108: 480 | L108: -666446.281 | M108: 567.2727273 | N108: -1130.909091 | O108: -740 | P108: -1130.909091 | Q108: 883.6363636 | R108: 134.5454545 | S108: 130 | T108: 134.5454545 | U108: 1581.818182 | V108: 87 | W108: PAF2 | Y108: 1581.818182
A109: 1600 | B109: 888000 | C109: 1408000 | D109: 192000 | E109: 192000 | F109: 192000 | G109: 768000 | H109: 120000 | I109: 555 | J109: 480 | K109: 480 | L109: -696000 | M109: 560 | N109: -1160 | O109: -760 | P109: -760 | Q109: 880 | R109: 120 | S109: 120 | T109: 120 | U109: 1600 | V109: 88 | W109: PAF3 | Z109: 1600
A110: 1618.181818 | B110: 896727.2727 | C110: 1418115.702 | D110: 170644.6281 | E110: 178000 | F110: 178000 | G110: 776727.2727 | H110: 120000 | I110: 554.1573034 | J110: 480 | K110: 480 | L110: -718727.2727 | M110: 552.7272727 | N110: -1189.090909 | O110: -780 | P110: -780 | Q110: 876.3636364 | R110: 105.4545455 | S110: 110 | T110: 110 | U110: 1618.181818 | V110: 89 | W110: PAF3 | Z110: 1618.181818
A111: 1636.363636 | B111: 905454.5455 | C111: 1428099.174 | D111: 148760.3306 | E111: 163636.3636 | F111: 163636.3636 | G111: 785454.5455 | H111: 120000 | I111: 553.3333333 | J111: 480 | K111: 480 | L111: -741818.1818 | M111: 545.4545455 | N111: -1218.181818 | O111: -800 | P111: -800 | Q111: 872.7272727 | R111: 90.90909091 | S111: 100 | T111: 100 | U111: 1636.363636 | V111: 90 | W111: PAF3 | Z111: 1636.363636
A112: 1654.545455 | B112: 914181.8182 | C112: 1437950.413 | D112: 126347.1074 | E112: 148909.0909 | F112: 148909.0909 | G112: 794181.8182 | H112: 120000 | I112: 552.5274725 | J112: 480 | K112: 480 | L112: -765272.7273 | M112: 538.1818182 | N112: -1247.272727 | O112: -820 | P112: -820 | Q112: 869.0909091 | R112: 76.36363636 | S112: 90 | T112: 90 | U112: 1654.545455 | V112: 91 | W112: PAF3 | Z112: 1654.545455
A113: 1672.727273 | B113: 922909.0909 | C113: 1447669.421 | D113: 103404.9587 | E113: 133818.1818 | F113: 133818.1818 | G113: 802909.0909 | H113: 120000 | I113: 551.7391304 | J113: 480 | K113: 480 | L113: -789090.9091 | M113: 530.9090909 | N113: -1276.363636 | O113: -840 | P113: -840 | Q113: 865.4545455 | R113: 61.81818182 | S113: 80 | T113: 80 | U113: 1672.727273 | V113: 92 | W113: PAF3 | Z113: 1672.727273
A114: 1690.909091 | B114: 931636.3636 | C114: 1457256.198 | D114: 79933.8843 | E114: 118363.6364 | F114: 118363.6364 | G114: 811636.3636 | H114: 120000 | I114: 550.9677419 | J114: 480 | K114: 480 | L114: -813272.7273 | M114: 523.6363636 | N114: -1305.454545 | O114: -860 | P114: -860 | Q114: 861.8181818 | R114: 47.27272727 | S114: 70 | T114: 70 | U114: 1690.909091 | V114: 93 | W114: PAF3 | Z114: 1690.909091
A115: 1709.090909 | B115: 940363.6364 | C115: 1466710.744 | D115: 55933.8843 | E115: 102545.4545 | F115: 102545.4545 | G115: 820363.6364 | H115: 120000 | I115: 550.212766 | J115: 480 | K115: 480 | L115: -837818.1818 | M115: 516.3636364 | N115: -1334.545455 | O115: -880 | P115: -880 | Q115: 858.1818182 | R115: 32.72727273 | S115: 60 | T115: 60 | U115: 1709.090909 | V115: 94 | W115: PAF3 | Z115: 1709.090909
A116: 1727.272727 | B116: 949090.9091 | C116: 1476033.058 | D116: 31404.95868 | E116: 86363.63636 | F116: 86363.63636 | G116: 829090.9091 | H116: 120000 | I116: 549.4736842 | J116: 480 | K116: 480 | L116: -862727.2727 | M116: 509.0909091 | N116: -1363.636364 | O116: -900 | P116: -900 | Q116: 854.5454545 | R116: 18.18181818 | S116: 50 | T116: 50 | U116: 1727.272727 | V116: 95 | W116: PAF3 | Z116: 1727.272727
A117: 1745.454545 | B117: 957818.1818 | C117: 1485223.14 | D117: 6347.107438 | E117: 69818.18182 | F117: 69818.18182 | G117: 837818.1818 | H117: 120000 | I117: 548.75 | J117: 480 | K117: 480 | L117: -888000 | M117: 501.8181818 | N117: -1392.727273 | O117: -920 | P117: -920 | Q117: 850.9090909 | R117: 3.636363636 | S117: 40 | T117: 40 | U117: 1745.454545 | V117: 96 | W117: PAF3 | Z117: 1745.454545
A118: 1763.636364 | B118: 966545.4545 | C118: 1494280.992 | D118: -19239.66942 | E118: 52909.09091 | F118: 52909.09091 | G118: 846545.4545 | H118: 120000 | I118: 548.0412371 | J118: 480 | K118: 480 | L118: -913636.3636 | M118: 494.5454545 | N118: -1421.818182 | O118: -940 | P118: -940 | Q118: 847.2727273 | R118: -10.90909091 | S118: 30 | T118: 30 | U118: 1763.636364 | V118: 97 | W118: PAF3 | Z118: 1763.636364
A119: 1781.818182 | B119: 975272.7273 | C119: 1503206.612 | D119: -45355.3719 | E119: 35636.36364 | F119: 35636.36364 | G119: 855272.7273 | H119: 120000 | I119: 547.3469388 | J119: 480 | K119: 480 | L119: -939636.3636 | M119: 487.2727273 | N119: -1450.909091 | O119: -960 | P119: -960 | Q119: 843.6363636 | R119: -25.45454545 | S119: 20 | T119: 20 | U119: 1781.818182 | V119: 98 | W119: PAF3 | Z119: 1781.818182
A120: 1800 | B120: 984000 | C120: 1512000 | D120: -72000 | E120: 18000 | F120: 18000 | G120: 864000 | H120: 120000 | I120: 546.6666667 | J120: 480 | K120: 480 | L120: -966000 | M120: 480 | N120: -1480 | O120: -980 | P120: -980 | Q120: 840 | R120: -40 | S120: 10 | T120: 10 | U120: 1800 | V120: 99 | W120: PAF3 | Z120: 1800
A121: 1818.181818 | B121: 992727.2727 | C121: 1520661.157 | D121: -99173.55372 | E121: 0 | F121: -1.65362673e-09 | G121: 872727.2727 | H121: 120000 | I121: 546 | J121: 480 | K121: 480 | L121: -992727.2727 | M121: 472.7272727 | N121: -1509.090909 | O121: -1000 | P121: -1000 | Q121: 836.3636364 | R121: -54.54545455 | S121: -9.094947018e-13 | T121: -9.094947018e-13 | U121: 1818.181818 | V121: 100 | W121: PAF3 | Z121: 1818.181818
C122: =MAX(C21:C121) -> 1520661.157 | D122: =MAX(D21:D121) -> 612495.8678 | E122: =MAX(E21:E121) -> 454545.4545
C123: =MAX(C122:E122) -> 1520661.157

Sheet Gesamtanalyse
H8: =Tabellen!J17 -> 575 | I8: 0
H9: =H8 -> 575 | I9: =Tabellen!C123 -> 1520661.157

Sheet Stückbetrachtung
H6: =Tabellen!J17 -> 575 | I6: 0 | J6: 0 | K6: =I7 -> 940
H7: =H6 -> 575 | I7: =Tabellen!J18 -> 940 | J7: =H6 -> 575 | K7: =I7 -> 940

Sheet Gewinn und Verlust
H7: =Tabellen!J17 -> 575 | I7: 0
H8: =H7 -> 575 | I8: =Tabellen!J16 -> 144500

Sheet Funktionen
B5: Aufgabe 1 | D5: Aufgabe 2 | F5: Aufgabe 3 | H5: Aufgabe 4 | J5: Aufgabe 5 | L5: Aufgabe 6 | N5: Aufgabe 7 | P5: Aufgabe 8
A6: K | B6: 4 | C6: 5100 | D6: 2 | E6: 2450 | F6: 14 | G6: 5000 | H6: 5 | I6: 450 | J6: 5 | K6: 450 | L6: 4 | M6: 2950 | N6: 6.8 | O6: 580 | P6: 9 | Q6: 3250
A7: PAF1 | B7: -0.00125 | C7: 15 | D7: -0.45 | E7: 92 | F7: -0.2 | G7: 100 | H7: -0.2 | I7: 200 | J7: -0.45 | K7: 1000 | L7: -0.355 | M7: 85 | N7: -1.15 | O7: 85 | P7: -0.1985 | Q7: 100
A8: PAF2 | B8: -0.01 | C8: 22 | D8: -0.85 | E8: 110.8 | F8: -0.5 | G8: 120 | H8: -0.5 | I8: 280 | J8: -0.85 | K8: 1200 | L8: -0.945 | M8: 120 | N8: -2.4 | O8: 105 | P8: -0.5015 | Q8: 120
A9: PAF3 | B9: -0.002 | C9: 12 | D9: -0.3 | E9: 60 | F9: -0.1 | G9: 60 | H9: -0.1 | I9: 100 | J9: -0.55 | K9: 900 | L9: -0.295 | M9: 65 | N9: -0.95 | O9: 65 | P9: -0.1055 | Q9: 60
B11: Aufgabe 9 | D11: Aufgabe 10 | F11: Aufgabe 10 | H11: Aufgabe 11 | J11: Aufgabe 12 | L11: Aufgabe 13 | N11: Aufgabe 14 | P11: Aufgabe 15
A12: K | B12: 5.8 | C12: 1900 | D12: 89 | E12: 29950 | F12: 12 | G12: 5100 | H12: 65 | I12: 650 | J12: 45 | K12: 4500 | L12: 477.5 | M12: 120000 | N12: 25 | O12: 15 | P12: 4 | Q12: 2500
A13: PAF1 | B13: -0.45 | C13: 92 | D13: -2.2 | E13: 920 | F13: -0.25 | G13: 150 | H13: -0.4 | I13: 115 | J13: -0.5 | K13: 210 | L13: -0.2 | M13: 1200 | N13: -2 | O13: 50 | P13: -0.002 | Q13: 16
A14: PAF2 | B14: -1.25 | C14: 125 | D14: -4.4 | E14: 1100 | F14: -0.5 | G14: 190 | H14: -1 | I14: 130 | J14: -0.75 | K14: 225 | L14: -0.85 | M14: 1400 | N14: -5 | O14: 80 | P14: -0.01 | Q14: 22
A15: PAF3 | B15: -0.3 | C15: 55 | D15: -3.1 | E15: 925 | F15: -0.25 | G15: 120 | H15: -0.4 | I15: 109 | J15: -0.3 | K15: 171 | L15: -0.55 | M15: 1000 | N15: -1 | O15: 30 | P15: -0.002 | Q15: 15
A18: K | B18: 480 | C18: 120000
A19: PAF1 | B19: -0.2 | C19: 1200
A20: PAF2 | B20: -0.8 | C20: 1400
A21: PAF3 | B21: -0.55 | C21: 1000
